Cogmind - Beta 15 @@@ ROGUE MODE // 2025.06.09 @ 15:50:30 Player: Skysub Result: Destroyed by 37-54C(R) with Subdweller Laser Performance ------------- Evolutions (0) 0 Regions Visited (2) 400 Robots Destroyed (28) 140 Value Destroyed (653) 653 Prototype IDs (13) 260 Alien Tech Used (0) 0 Bonus (0) 0 TOTAL SCORE: 1453 Bonus ------- None Cogmind --------- Core Integrity 0/250 Matter 208/300 Energy 200/200 System Corruption 2% Temperature Cool (6) Movement Rolling (125) Ox3 Location -10/Subcaves Parts ------- > --- POWER (1) -------- Subdweller Power Source > --- PROPULSION (2) --- Spiked Treads Wheel > --- UTILITY (2) ------ Large Storage Unit Makeshift Light Armor Plating > --- WEAPON (2) ------- Subdweller Machine Gun Makeshift Axe > --- INVENTORY (15) --- Structural Scanner Structural Scanner Subdweller Optics Subdweller Optics Subdweller Optics Targeting Computer Scrap Shield Rainbow Chip Subdweller Laser Subdweller Beam Cannon Subdweller Machine Gun Subdweller Machine Gun Subdweller Machine Gun Subdweller Machine Gun Peak State ------------ > --- POWER ------------ Subdweller Power Source > --- PROPULSION ------- Spiked Treads Wheel > --- UTILITY ---------- Large Storage Unit Makeshift Light Armor Plating > --- WEAPON ----------- Subdweller Machine Gun Makeshift Axe > --- INVENTORY -------- Structural Scanner Structural Scanner Subdweller Optics Subdweller Optics Subdweller Optics Targeting Computer Scrap Shield Rainbow Chip Subdweller Laser Subdweller Beam Cannon Subdweller Machine Gun Subdweller Machine Gun Subdweller Machine Gun Subdweller Machine Gun [Rating: 19] Favorites ----------- Power Ion Engine Engine Ion Engine Propulsion Light Treads Treads Light Treads Leg Aluminum Leg Wheel Wheel Utility Large Storage Unit Device Structural Scanner Storage Large Storage Unit Protection Makeshift Light Armor Plating Weapon Light Assault Rifle Energy Gun Small Laser Ballistic Gun Light Assault Rifle Special Weapon Mining Laser Slashing Weapon Makeshift Axe Build | -11 -10 -10 ------- Run | Yrd Mat Sub Slots Evolved . | . . . Power . | . . . Propulsion . | . . . Utility . | . . . Weapon . | . . . Parts Attached 24 | 6 6 12 Power 3 | 1 1 1 Engine 3 | 1 1 1 Core . | . . . Reactor . | . . . Propulsion 6 | 2 1 3 Treads 3 | 2 . 1 Leg 1 | . . 1 Wheel 2 | . 1 1 Hover . | . . . Flight . | . . . Utility 5 | 2 1 2 Device 2 | 1 . 1 Storage 2 | 1 1 . Processor . | . . . Hackware . | . . . Protection 1 | . . 1 Artifact . | . . . Weapon 10 | 1 3 6 Energy Gun 2 | . 1 1 Energy Cannon . | . . . Ballistic Gun 5 | 1 1 3 Ballistic Cannon . | . . . Launcher . | . . . Special Weapon 2 | . 1 1 Impact Weapon . | . . . Slashing Weapon 1 | . . 1 Piercing Weapon . | . . . Special Melee Weapon . | . . . Unidentified Prototypes . | . . . Parts Lost 4 | . 2 2 Power 1 | . 1 . Propulsion 3 | . 1 2 Utility . | . . . Weapon . | . . . Highest Loss Streak 1 | . 1 1 To Critical Strikes . | . . . Average Backups 10 | 3 7 13 Power . | . 1 . Propulsion 1 | 1 2 . Utility 4 | . 1 6 Weapon 4 | 1 2 5 Tool/Special . | . . . Unused Backups 16 | . 1 15 Power 1 | . . 1 Propulsion . | . . . Utility 8 | . . 8 Weapon 7 | . 1 6 Tool/Special . | . . . Average Slot Usage (%) 99 | . 97 99 Engine 13 | . 13 14 Treads 16 | . 27 10 Wheel 10 | . . 16 Device 11 | . 14 9 Storage 14 | . 14 14 Protection 2 | . . 4 Energy Gun 4 | . 7 2 Ballistic Gun 18 | . 18 17 Special Weapon 2 | . . 4 Slashing Weapon 2 | . . 3 Peak Build Rating 19 | 8 10 19 Average Rating 11 | 5 9 13 On Entrance 6 | . 8 10 Naked Turns . | . . . Heaviest Build 37 | 10 28 37 Greatest Support 40 | 40 40 20 Greatest Overweight (x) 3 | . 2 3 Average Overweight (x) 1 | . . 2 Largest Inventory Capacity 15 | 8 15 15 Average Capacity 12 | 7 10 15 Most Carried 15 | 5 13 15 Average Carried 11 | 3 7 14 Final Capacity 15 | 8 15 15 Final Carried 15 | 5 12 15 Class Distribution -------------------- 100% | Mutant Dominant Class ---------------- Mutant | -10/Materials Mutant | -10/Subcaves Resources | -11 -10 -10 ----------- Run | Yrd Mat Sub Matter Collected 689 | 282 162 245 Remotely . | . . . Salvage Created 959 | 67 746 146 Parts 67 | 9 40 18 Haulers Intercepted 1 | . 1 . Recyclers Shooed 3 | 1 2 . Parts Field Recycled . | . . . Retrieved Matter . | . . . Parts Self-Destructed 11 | . . 11 Prevented . | . . . Kills | -11 -10 -10 ------- Run | Yrd Mat Sub Combat Hostiles Destroyed 20 | . 13 7 Guns 20 | . 13 7 Classes Destroyed 8 | 2 4 2 Worker 1 | 1 . . Builder 3 | . 3 . Tunneler 2 | 2 . . Hauler 1 | . 1 . Recycler 1 | . 1 . Swarmer 4 | . . 4 Grunt 13 | . 13 . Subdweller 3 | . . 3 Best Kill Streak 5 | 3 5 3 Combat Bots Only 5 | . 5 3 Max Kills in Single Turn 1 | 1 1 1 Gunslinging . | . . . Exploded . | . . . Melee . | . . . Uniques/NPCs Destroyed . | . . . Combat | -11 -10 -10 -------- Run | Yrd Mat Sub Hostile Shots Fired 102 | . 51 51 Missed 23 | . 8 15 Hits 79 | . 43 36 Projectile 79 | . 43 36 Critical Strikes 1 | . 1 . Damage Taken 1091 | . 505 586 Core 270 | . 55 215 Absorbed by Shields . | . . . Core Remaining (%) 100 | 100 . . Volleys Fired 131 | 22 68 41 Largest 2 | 1 2 2 Hottest 100 | 20 100 100 Shots Fired 221 | 22 135 64 Gun 209 | 22 133 54 Cannon . | . . . Launcher . | . . . Special 12 | . 2 10 Kinetic 167 | 22 96 49 Thermal 54 | . 39 15 Explosive . | . . . Electromagnetic . | . . . Robot Hit Streak 19 | 3 19 14 Robot Miss Streak 3 | 3 2 2 Penetration Max . | . . . Secondary Targets 1 | . . 1 Max Gunslinging Chain 1 | . . 1 Shots Hit Robots 151 | 13 97 41 Core Hits 65 | 7 44 14 Critical Kills 1 | . 1 . Critical Parts Destroyed . | . . . Critical Strikes 1 | . 1 . Destroy 1 | . 1 . Melee Attacks 4 | . . 4 Impact . | . . . Slashing 4 | . . 4 Piercing . | . . . Sneak Attacks . | . . . Combat Hostiles . | . . . Follow-up Attacks . | . . . Damage Inflicted 1562 | 107 928 527 Guns 1562 | 107 928 527 Cannons . | . . . Explosions . | . . . Melee . | . . . Ramming . | . . . Kinetic 1155 | 107 561 487 Thermal 407 | . 367 40 Explosive . | . . . Electromagnetic . | . . . Impact . | . . . Slashing . | . . . Piercing . | . . . Highest Corruption 2 | . 2 2 Average Corruption 2 | . 2 2 Corruption Purged . | . . . Corruption Blocked . | . . . Effects 31 | . 9 22 Message Errors 7 | . 2 5 Matter Fused 10 | . 2 8 Energy Discharges 5 | . 3 2 Data Loss (minor) 3 | . 1 2 Data Loss (major) 1 | . . 1 Misfires 2 | . 1 1 Alerts 1 | . . 1 Weapon Failures 2 | . . 2 Overload Shots . | . . . Overflow Damage . | . . . Projectiles . | . . . Explosions . | . . . Melee . | . . . Knockbacks . | . . . Impact . | . . . Kinetic . | . . . Secondary . | . . . Self-Inflicted Damage . | . . . Shots . | . . . Rammed . | . . . Targets Rammed . | . . . Kicked . | . . . Crushed . | . . . Highest Temperature 142 | . 142 . Average Temperature 46 | . 46 . Received Heat Transfer 396 | . 294 102 Siege Activations . | . . . Martial Activations . | . . . Shielding Activations . | . . . Robots Disrupted . | . . . Combat Hostiles . | . . . Robots Corrupted . | . . . Combat Hostiles . | . . . Parts Fried . | . . . Impact Corruptions . | . . . Robots Melted . | . . . Combat Hostiles . | . . . Parts Melted . | . . . Heat Transferred 875 | . 825 50 Parts Sabotaged . | . . . Parts Stolen . | . . . Parts Stripped . | . . . Power Chain Reactions . | . . . Alert | -11 -10 -10 ------- Run | Yrd Mat Sub Maximum Alert Level . | . . . Low Security (%) 100 | 100 100 . Level 1 . | . . . Level 2 . | . . . Level 3 . | . . . Level 4 . | . . . Level 5 . | . . . High Security . | . . . Max Security . | . . . Peak Influence 145 | 10 145 . Initial . | . . . Average 52 | 1 62 . Influence Increases 604 | 15 419 170 Destroy 0b10 Robot/C 340 | . 260 80 Destroy 0b10 Robot/NC 40 | 15 25 . Destroy Leader 52 | . 52 . Successful Hack 22 | . 22 . Select Force Hacks 60 | . 60 . Lose Combat Pursuer 90 | . . 90 Influence Decreases 516 | 15 368 133 Entered New Map 25 | . . 25 Time Decay 471 | 15 348 108 Lost Part 20 | . 20 . Squads Dispatched 5 | . 5 . Investigation 3 | . 3 . Extermination . | . . . Reinforcement 2 | . 2 . Assault . | . . . Garrison . | . . . Intercept . | . . . Searches Triggered . | . . . Construction Impeded . | . . . Haulers Reinforced . | . . . Active Scanning Responses . | . . . Cargo Convoy Interrupts . | . . . Stealth | -11 -10 -10 --------- Run | Yrd Mat Sub Distress Signals . | . . . Communications Jammed . | . . . Distress Signals . | . . . Times Spotted 32 | . 20 12 Peak Tracking Total 5 | . 5 5 Tactical Retreats 2 | . . 2 Traps | -11 -10 -10 ------- Run | Yrd Mat Sub Traps Triggered 2 | . 1 1 Indirectly . | . . . Trap Hack Attempts . | . . . Triggered . | . . . Disarmed . | . . . Reprogrammed . | . . . Reused . | . . . Traps Extracted . | . . . Installed . | . . . Triggered . | . . . Machines | -11 -10 -10 ---------- Run | Yrd Mat Sub Machines Disabled 1 | . . 1 Max in Single Turn 1 | . . 1 Machines Repaired . | . . . Machines Dismantled . | . . . Machines Sabotaged . | . . . Overloaded Fab Kills . | . . . Hacking | -11 -10 -10 --------- Run | Yrd Mat Sub Machines Accessed 10 | . 6 4 Terminals 4 | . 4 . Fabricators . | . . . Repair Stations . | . . . Recycling Units 2 | . 2 . Scanalyzers . | . . . Garrison Access . | . . . Total Hacks 26 | . 20 6 Successful 22 | . 16 6 Failed 4 | . 4 . Catastrophic 1 | . 1 . Database Lockouts . | . . . Manual 11 | . 11 . Terminals 15 | . 15 . Fabricators . | . . . Repair Stations . | . . . Recycling Units 5 | . 5 . Scanalyzers . | . . . Garrison Access . | . . . Terminal Hacks 14 | . 8 6 Record 4 | . . 4 Prototype ID Bank 1 | . 1 . Open Door 1 | . . 1 Emergency Access Points 1 | . 1 . Locate Traps 1 | . 1 . Maintenance Status 1 | . 1 . Hauler Manifests 1 | . 1 . Zone Layout 3 | . 3 . Proto ID Catalog 1 | . . 1 Fabricator Hacks . | . . . Repair Station Hacks . | . . . Recycling Unit Hacks 3 | . 3 . Report Inventory 2 | . 2 . Retrieve Components 1 | . 1 . Scanalyzer . | . . . Garrison Access Hacks . | . . . Unauthorized Hacks 5 | . 5 . Terminals 3 | . 3 . Botnet 3 | . 3 . Fabricators . | . . . Repair Stations . | . . . Recycling Units 2 | . 2 . Tunnel 2 | . 2 . Scanalyzers . | . . . Garrison Access . | . . . Data Cores Recovered . | . . . Used . | . . . Hacking Detections 4 | . 4 . Full Trace Events 2 | . 2 . Feedback Events . | . . . Feedback Blocked . | . . . Robot Schematics Acquired . | . . . Robots Built . | . . . Authchips . | . . . Time . | . . . Total Robot Build Rating . | . . . Part Schematics Acquired . | . . . Parts Built . | . . . Authchips . | . . . Time . | . . . Total Part Build Rating . | . . . Parts Repaired . | . . . Time . | . . . Parts Recycled . | . . . Recycled Matter . | . . . Retrieved Matter . | . . . Retrieved Components 9 | . 9 . Parts Scanalyzed . | . . . Part Schematics Acquired . | . . . Parts Damaged . | . . . Bothacking | -11 -10 -10 ------------ Run | Yrd Mat Sub Used RIF Installer . | . . . Robots Hacked . | . . . Non-combat . | . . . Combat . | . . . Robot Hacks Applied . | . . . Relay Couplers Released . | . . . Fabnet Peak Effective % . | . . . Robots Rewired . | . . . Allies Hacked . | . . . Hacks Repelled . | . . . Allies | -11 -10 -10 -------- Run | Yrd Mat Sub Total Allies . | . . . Largest Group . | . . . Highest-Rated Group . | . . . Highest-Rated Ally . | . . . Total Orders . | . . . Ally Attacks . | . . . Total Damage . | . . . Kills . | . . . Allies Corrupted . | . . . Allies Melted . | . . . Intel | -11 -10 -10 ------- Run | Yrd Mat Sub Active Infowar (turns) 1876 | 22 862 992 Terrain 917 | 22 862 33 Structural 959 | . . 959 Robot Analysis Total . | . . . Derelict Logs Recovered 1 | . . 1 Drone Launches . | . . . Drone Recoveries . | . . . Exploration | -11 -10 -10 ------------- Run | Yrd Mat Sub Turns Passed 2491 | 175 862 1454 Spaces Moved 1394 | 78 377 939 Core 2 | 2 . . Treads 563 | 76 376 111 Legs . | . . . Wheels 829 | . 1 828 Hover . | . . . Flight . | . . . Fastest Speed 50 | 50 110 95 Average Speed 140 | 157 162 130 Slowest Speed 260 | 160 240 260 Overloaded Moves . | . . . Propulsion Burnouts . | . . . Robots Hopped . | . . . Potential Cave-ins . | . . . Cave-ins Triggered . | . . . Exploration Rate (%) 40 | 6 67 49 Regions Visited 2 Branch Regions 1 Pre-discovered Areas 2 | . 2 . Known Exits Taken . | . . . Unknown Exits Taken 2 | 1 1 . Scrap Searched 6 | . . 6 Spaces Dug . | . . . Terrain Destroyed 2 | . . 2 Melee . | . . . Projectile 2 | . . 2 AOE . | . . . Terrain Rammed . | . . . Walls Destroyed . | . . . Machines Disabled . | . . . Actions | -11 -10 -10 --------- Run | Yrd Mat Sub Total 1693 | 110 508 1075 Wait 91 | . 44 47 Move 1392 | 77 376 939 Hop . | . . . Pick Up 28 | 5 9 14 Fast Attach 9 | 6 3 . Attach 4 | . 1 3 Detach . | . . . Swap 19 | . 3 16 Drop 15 | . 4 11 Fire 131 | 22 68 41 Melee 4 | . . 4 Ram . | . . . Kick . | . . . Crush . | . . . Escape Stasis . | . . . Rewire . | . . . Trap . | . . . Miscellaneous . | . . . Route ------- -11/Scrapyard -10/Materials (discovered 5 exits: [*Mat x2] / [*Min x2] / *Sub) -10/Subcaves (discovered 1 exit: [*Rec]) History --------- Turn | Location | Event 67 | -11/Scrapyard | Discovered new exit (range 12) 176 | -11/Scrapyard | Entered Materials 200 | -10/Materials | Discovered new exit (range 16) 307 | -10/Materials | Build established: Mutant 406 | -10/Materials | Discovered new exit (range 13) 667 | -10/Materials | Discovered new exit (range 16) 880 | -10/Materials | Discovered new exit (range 8) 1010 | -10/Materials | Discovered new exit (range 2) 1038 | -10/Materials | Entered Subcaves 1039 | -10/Subcaves | Approached by a straggling Scientist 1248 | -10/Subcaves | Core integrity fell below 50% 1306 | -10/Subcaves | Shifting Twisted Machinery released Flamer 1306 | -10/Subcaves | Shifting Twisted Machinery released Mak. Light Armor Plating 1475 | -10/Subcaves | Core integrity fell below 20% 1739 | -10/Subcaves | Visited 4L-MR0's lab 1787 | -10/Subcaves | Found Rainbow Chip 2027 | -10/Subcaves | Visited Clippyterm 2031 | -10/Subcaves | Learned Factory stockpile data 2075 | -10/Subcaves | Shifting Twisted Machinery released Battle Cannon 2098 | -10/Subcaves | Shifting Twisted Machinery released Barrage Gun 2131 | -10/Subcaves | Discovered new exit (range 10) 2415 | -10/Subcaves | A swath of the cavern ceiling suddenly collapsed 2492 | -10/Subcaves | Destroyed by 37-54C(R) with Subdweller Laser Last Messages --------------- Battle Cannon falls loose from the Twisted Machinery. Barrage Gun falls loose from the Twisted Machinery. S-10 Pest destroyed. Lgt. Ion Engine fries itself beyond repair. Flight Unit fries itself beyond repair. EXIT=FOUND Destroyed Flight Unit. S-10 Pest destroyed. Switching to secondary target: S-10 Pest. System corrupted: Energy discharge (-56). Lgt. Ion Engine fries itself beyond repair. Flight Unit fries itself beyond repair. S-10 Pest destroyed. Lgt. Assault Rifle fries itself beyond repair. Acquired 10 matter. System corrupted: Matter fused (-6). System corrupted: IFF burst signal emitted. System corrupted: Matter fused (-5). /T&Q 0RPB8HB:TGUZERN27,9>TD A swath of the cavern ceiling suddenly collapses. Map ----- +----------------------------------------------------+ | ?????????????????????????????????????????????????? | | ?????????????????????????????????????????????????? | | ?????????????????????????????????????????????????? | | ?????????????????????????????????????????????????? | | ?????????????????????????????????????????????????? | | ?????????????????????????????????????????????????? | | ???????????????????????????????????? ????????????? | | ??????????????????????????????????? ???????????? | | ?????????????????????????????????? ??????????? | | ????????????????????????????????? ??????????? | | ###????????????????????????????? ?????????? | | ###????????####?###############" ""????????? | | ##?######## #### ## # # " #?????????? | | ########### ### " "#?????????? | | ##### ## ## """#???????????? | | #### ### # "# ##???????????? | | #### ### ##? " #??????????????? | | ##?## ###? ###??????????????? | | ### ##??## ####? ???????????????? | | ##### ###????# ###? #?????????????? | | ###?## ##??????# ### ###?????????????? | | ##???#####???????## ## ###?????????????? | | ###??????????????### ## ###????????????? | | # #####?????????????#### ## ####???????????? | | # ####??????????????### ## ###???????????? | | ##???????????????## @ ##???????????? | | ####??????????????## ##???????????? | | ###?????????????### R ###???????????? | | ###????????????### ###R ##????????????? | | ###????????????## ### ##????????????? | | ##????????????## ## ###????????????? | | ###????????????## # ##?????????????? | | ## ###????????????## ; #;;# ###?????????????? | | ## ##????????????####;;###"# ###?????????????? | | ##????????????### #####" ##?????????????? | | ##????????????##"####"## ##?????????????? | | ### ###???????????### "###### ###?????????????? | | ### ##???????????###""#"""## ###?????????????? | | ########????????????####"""#"## ##??????????????? | | #######????????????##"#"### ######??????????????? | | ###???????????????####" ###"#####??????????????? | | ##???????????????##" "#"###""##???????????????? | | ##???????????????##"####""""###???????????????? | | # ##???????????????##############???????????????? | | # ##???????????????#############????????????????? | | ###????????????????????????????????????????????? | | ###????????????????????????????????????????????? | | ###?????????????????????????????????????????????? | | ####?????????????????????????????????????????????? | | ###??????????????????????????????????????????????? | +----------------------------------------------------+ Best States ------------- Heat Dissipation 25 Energy Generation 15 Energy Capacity 250 Matter Stores 300 Matter Capacity 300 Sight Range 16 Terrain Scan Range 16 Terrain Scan Density 10 Armor Coverage 100 Evasion (%) 41 Recoil Reduction 2 Item Schematics ----------------- None Robot Schematics ------------------ None Fabricated ------------ Nothing Repaired ---------- Nothing Alien Tech Used ----------------- None Achievements -------------- None Challenges ------------ None Game ------ Seed NetworkedAlloyReplica Manual? 0 Play Time 00:18:44 Cumulative 117.6 hours Start 2025.06.09 @ 02:12:42 End 2025.06.09 @ 15:50:30 Sessions 2 Manual Loads 0 Difficulty Rogue Special Mode None Game No. 121 Rogue 121 Adventurer 0 Explorer 0 Win Type - Total 2 Types 1/0/0/1/0/0/0/0/0/0 Lore% 59 Gallery% 55 Achievement% 50 Wizard Run 0 Options --------- Layout 1 ASCII 0 Keyboard 1 Movement Numpad Keybinds 0 Fullscreen 1 Font 32/SmallcapsGlow Map View 77x35 Zoom Use 0% Tactical HUD 0 Map Filters NONE Filters NONE Steam 1 RUN: d251299c-949f-4512-b460-7fa5a2407353